bitfinex/quotes_ETHUSD_20240823
["timestamp","ask_amount","ask_price","bid_price","bid_amount"]
[1724410590644,2.90532977,2672.7,2672.5,0.10167873]
[1724410591045,0.55,2672.7,2672.5,0.10167873]
[1724410591449,2.90532977,2672.7,2672.5,0.10167873]
[1724410593198,2.90692566,2672.7,2672.5,0.10167873]
[1724410593764,0.55,2672.7,2672.5,0.10167873]
[1724410594058,2.35692566,2672.8,2672.5,4.29717229]
[1724410595451,2.35692566,2672.7,2672.5,4.29717229]
[1724410595960,2.35692566,2672.8,2672.5,4.29717229]
[1724410596163,2.35692566,2672.7,2672.5,4.29717229]
[1724410597053,2.35692566,2672.7,2672.5,0.55537229]
[1724410597273,2.35692566,2672.7,2672.5,0.10167873]
[1724410597472,3.74141,2672.8,2672.2,11.15211]
[1724410597473,2.35692566,2672.6,2672.2,11.15211]
[1724410597702,6.09847566,2672.7,2672.6,0.10159296]
[1724410597890,3.74172,2672.6,2672.2,7.41]
[1724410598084,6.09932085,2672.6,2672.2,7.41]
[1724410598976,2.35760085,2672.5,2672.2,7.41]
[1724410599182,2.35745896,2672.5,2672.2,10.563088]
[1724410599782,2.35745896,2672.5,2672.2,14.305308]
[1724410599981,2.35745896,2672.6,2672.2,14.305308]
[1724410600887,2.35745896,2672.6,2672.3,0.10188852]
[1724410601215,2.35745896,2672.6,2672.2,14.305308]
[1724410601378,2.35745896,2672.6,2672.4,0.10180274]
[1724410601719,2.35745896,2672.6,2672.5,0.10171696]
[1724410602012,2.35745896,2672.6,2672.2,14.305308]
[1724410602214,2.35745896,2672.6,2672.5,0.10171696]
[1724410602386,6.09912896,2672.6,2672.2,14.305308]
[1724410602792,6.09909074,2672.6,2672.5,0.10171696]
[1724410603012,6.09909074,2672.6,2672.2,3.74222]
[1724410603214,6.09909074,2672.6,2672.5,0.10171696]
[1724410603412,6.09909074,2672.6,2672.2,3.74222]
[1724410603613,6.09909074,2672.6,2672.5,0.10171696]
[1724410603818,6.09909074,2672.6,2672.2,3.74222]
[1724410604023,6.09909074,2672.6,2672.5,0.10171696]
[1724410604184,6.09909074,2672.6,2672.2,3.74222]
[1724410604381,9.84076074,2672.6,2672.5,0.10171696]
[1724410604586,3.74202,2672.4,2672.0,17.945]
[1724410604804,3.7421,2672.3,2672.0,14.945]
[1724410604989,6.64947051,2672.3,2672.0,14.945]
[1724410605193,3.74224,2672.2,2672.0,14.945]
[1724410605511,6.64947051,2672.3,2672.0,14.929]
[1724410606390,3.7423,2672.2,2672.0,14.929]
[1724410606589,6.0166,2672.2,2672.0,14.929]
[1724410609213,4.29237,2672.1,2672.0,14.929]
[1724410609619,0.55,2672.1,2672.0,14.929]
[1724410614115,8.03474,2672.1,2672.0,14.929]
[1724410614319,10.41664,2672.1,2672.0,14.929]
[1724410615338,12.76942348,2672.1,2672.0,14.929]
[1724410615956,12.76942348,2672.1,2672.0,15.02125321]
[1724410617069,12.7689151,2672.1,2672.0,15.02125321]
[1724410617454,10.41664,2672.1,2672.0,15.02125321]
[1724410617970,12.7689151,2672.1,2672.0,15.02125321]
[1724410618536,10.41664,2672.1,2672.0,15.02125321]
[1724410620547,12.7689151,2672.1,2672.0,14.929]
[1724410620748,12.7689151,2672.1,2672.0,15.02160134]
[1724410620965,12.76728325,2672.1,2672.0,15.02160134]
[1724410621454,10.41664,2672.1,2672.0,15.02160134]
[1724410622374,12.76728325,2672.1,2672.0,14.929]
[1724410622548,12.76728325,2672.1,2672.0,15.02160134]
[1724410623478,10.41664,2672.1,2672.0,15.02160134]
[1724410623832,10.41174801,2672.1,2672.0,15.02160134]
[1724410624156,12.76239126,2672.1,2672.0,15.02160134]
[1724410625377,12.76054614,2672.1,2672.0,15.02160134]
[1724410625560,12.76054614,2672.1,2672.0,14.929]
[1724410625934,12.76054614,2672.1,2672.0,15.02160134]
[1724410626159,10.41174801,2672.1,2672.0,15.02160134]
[1724410626535,12.76054614,2672.1,2672.0,15.02160134]
[1724410627075,10.41174801,2672.1,2672.0,15.02160134]
[1724410629170,8.02984801,2672.1,2672.0,15.02160134]
[1724410632502,8.02984801,2672.1,2672.0,14.929]
[1724410632865,8.02984801,2672.1,2672.0,15.02166811]
[1724410633707,10.33804801,2672.1,2672.0,15.02166811]
[1724410634500,11.43870161,2672.1,2672.0,15.02166811]
[1724410635500,9.13050161,2672.1,2672.0,15.02166811]
[1724410636501,8.02984801,2672.1,2672.0,15.02166811]
[1724410637089,6.09055121,2672.2,2672.0,15.64537488]
[1724410637402,3.74219,2672.3,2672.1,2.3579]
[1724410637403,7.48436,2672.3,2672.1,2.3579]
[1724410637812,3.74217,2672.3,2672.2,0.09270639]
[1724410637972,7.48439,2672.3,2672.2,0.09270639]
[1724410639099,8.03439,2672.3,2672.2,0.09270639]
[1724410639300,9.1350436,2672.3,2672.2,0.09270639]
[1724410639505,7.48474,2672.1,2672.0,14.929]
[1724410640003,8.03474,2672.1,2672.0,14.929]
[1724410646408,10.38510794,2672.1,2672.0,15.01960642]
[1724410649080,8.03474,2672.1,2672.0,15.01960642]
[1724410650312,12.8777636,2672.1,2672.0,15.01960642]
[1724410650784,15.6237674,2672.1,2672.0,15.01960642]
[1724410651518,15.62547569,2672.1,2672.0,15.01960642]
[1724410652795,12.8777636,2672.1,2672.0,15.01960642]
[1724410652996,15.62584876,2672.1,2672.0,15.01960642]
[1724410653720,15.62584876,2672.1,2672.0,14.929]
[1724410654248,12.8777636,2672.1,2672.0,15.01970662]
[1724410654419,15.62607948,2672.1,2672.0,15.01970662]
[1724410656320,14.52542588,2672.1,2672.0,15.01970662]
[1724410656623,10.78305588,2672.1,2672.0,15.01970662]
[1724410659025,8.03474,2672.1,2672.0,15.01970662]
[1724410659401,8.03474,2672.1,2672.0,14.929]
[1724410659796,8.03474,2672.1,2672.0,15.01970662]
[1724410662905,10.78592231,2672.1,2672.0,15.01970662]
[1724410664139,13.53766797,2672.1,2672.0,15.01970662]
[1724410664321,10.78648566,2672.1,2672.0,15.01970662]
[1724410664638,11.23173,2671.0,2670.9,1.6e-06]
[1724410664929,11.23173,2671.0,2670.7,2.497059]
[1724410664930,0.0652,2670.8,2670.7,2.497059]
[1724410665235,0.0652,2670.8,2670.7,3.55144829]
[1724410665236,3.80939,2670.8,2670.7,3.55144829]
[1724410665396,6.71467812,2670.8,2670.7,3.55144829]
[1724410665597,6.71467812,2670.8,2670.7,3.08283083]
[1724410665841,4.35939,2670.8,2670.7,3.08283083]
[1724410666009,6.71467812,2670.8,2670.7,3.08283083]
[1724410666212,4.35939,2670.8,2670.7,3.08283083]
[1724410666829,4.35939,2670.8,2670.7,3.082833]
[1724410667529,0.6152,2670.8,2670.7,3.082833]
[1724410667746,2.57589204,2670.8,2670.7,3.082833]
[1724410667888,2.57589204,2670.8,2670.7,3.43797822]
[1724410667889,2.02587326,2670.8,2670.7,3.43797822]
[1724410668290,0.0652,2670.8,2670.7,3.43797822]
[1724410669152,1.63298623,2670.8,2670.7,3.43797822]
[1724410669956,1.63298623,2670.8,2670.7,2.85220422]
[1724410670254,1.56778623,2670.8,2670.7,3.43797058]
[1724410670954,5.31197623,2670.8,2670.7,3.08282536]
[1724410672152,5.31197623,2670.8,2670.7,3.15991335]
[1724410673539,5.31197623,2670.8,2670.7,3.15991426]
[1724410673927,5.31197623,2670.8,2670.7,3.15991436]
[1724410674335,5.31197623,2670.8,2670.7,2.57414699]
[1724410674656,5.31193623,2670.9,2670.7,3.15991434]
[1724410674874,5.31193623,2670.9,2670.7,2.57414699]
[1724410675037,5.31193623,2670.9,2670.8,0.58576722]
[1724410675437,5.31193623,2670.9,2670.8,0.66276932]
[1724410677177,5.31193623,2670.9,2670.8,0.0770021]
[1724410677335,5.31193623,2670.9,2670.8,0.66276916]
[1724410677539,5.31193623,2670.9,2670.8,0.58576706]
[1724410677851,5.31193623,2670.9,2670.8,0.66276916]
[1724410678757,5.31193623,2670.9,2670.8,0.0770021]
[1724410678978,5.31193623,2670.9,2670.8,0.66276926]
[1724410679274,5.31193623,2670.9,2670.8,0.58576716]
[1724410679488,5.31193623,2670.9,2670.8,0.66324066]
[1724410679849,5.31193623,2670.9,2670.8,0.58576716]
[1724410680057,5.31193623,2670.9,2670.8,0.66324066]
[1724410680381,3.74415,2670.9,2670.8,0.66324066]
[1724410680683,3.74415,2670.9,2670.8,0.0774735]
[1724410680881,3.74415,2670.9,2670.8,0.66323851]
[1724410681034,3.74415,2670.9,2670.8,0.58576501]
[1724410681233,3.74415,2670.9,2670.8,0.66323851]
[1724410683680,3.74415,2670.9,2670.8,0.0774735]
[1724410683848,3.74415,2670.9,2670.8,0.66323913]
[1724410684047,3.74415,2670.9,2670.8,0.58576563]
[1724410684248,3.74415,2670.9,2670.8,0.0774735]
[1724410684565,3.74415,2670.9,2670.8,0.58576609]
[1724410684738,3.74415,2670.9,2670.8,0.66323959]
[1724410686677,5.69895135,2671.1,2671.0,3.74391]
[1724410686678,1.56778623,2671.1,2671.0,3.74391]
[1724410686976,1.56778623,2671.6,2671.1,3.74364]
[1724410687173,5.69831887,2671.7,2671.2,7.1770836]
[1724410687174,5.31072623,2671.7,2671.2,7.1770836]
[1724410687429,9.05377623,2671.7,2671.2,8.35454596]
[1724410687678,5.31072623,2671.7,2671.2,3.51026236]
[1724410688035,9.05378623,2671.7,2671.2,3.51026236]
[1724410688242,5.31072623,2671.7,2671.2,3.51026236]
[1724410688443,9.05374623,2671.7,2671.3,2.2888]
[1724410688676,9.05376623,2671.7,2671.3,2.2888]
[1724410688880,6.41137983,2671.7,2671.4,0.07741542]
[1724410689075,3.74321,2671.5,2671.4,0.07741542]
[1724410691381,5.31099623,2671.5,2671.4,0.07741542]
[1724410691583,3.74321,2671.5,2671.4,0.07741542]
[1724410691893,5.31099623,2671.5,2671.4,0.07741542]
[1724410692057,3.74321,2671.5,2671.4,0.07741542]
[1724410692608,5.31099623,2671.5,2671.4,0.07741542]
[1724410693251,3.74321,2671.5,2671.4,0.07741542]
[1724410694076,5.31099623,2671.5,2671.4,0.07741542]
[1724410696600,8.5870736,2671.5,2671.4,0.07741542]
[1724410696799,3.74342,2671.4,2671.1,2.2732]
[1724410697098,5.30919711,2671.4,2671.2,0.58573286]
[1724410697308,5.30919711,2671.4,2671.1,2.2732]
[1724410697474,5.30919711,2671.4,2671.2,0.58573222]
[1724410697682,5.30919711,2671.4,2671.1,2.2732]
[1724410697881,5.30919711,2671.4,2671.2,0.58573213]
[1724410698080,5.30919711,2671.4,2671.1,2.2732]
[1724410698990,5.30919711,2671.4,2671.2,0.00902982]
[1724410701508,1.56577711,2671.4,2671.2,0.00902982]
[1724410701669,6.25133286,2671.5,2671.2,0.00902982]
[1724410701670,5.85898711,2671.5,2671.2,0.00902982]
[1724410701876,2.11577711,2671.5,2671.3,2.346]
[1724410702813,1.56577711,2671.4,2671.3,2.346]
[1724410705792,1.56577711,2671.4,2671.3,2.42048253]
[1724410710223,6.25133286,2671.5,2671.3,2.42048253]
[1724410711024,6.25326624,2671.5,2671.3,2.42048253]
[1724410711426,9.99655624,2671.5,2671.3,2.42048253]
[1724410711720,9.99655624,2671.5,2671.3,0.07448253]
[1724410711721,6.25326624,2671.5,2671.3,0.07448253]
[1724410712024,1.96005624,2671.4,2671.2,0.00902982]
[1724410712222,1.5680652,2671.3,2671.2,0.00902982]
[1724410715162,1.96005624,2671.4,2671.2,0.00902982]
[1724410715867,1.96042721,2671.4,2671.2,0.00902982]
[1724410716138,1.96042721,2671.3,2671.2,0.00902982]
[1724410717962,1.96042721,2671.4,2671.2,0.00902982]
[1724410718162,1.96042721,2671.3,2671.2,0.00902982]
[1724410719546,1.96016305,2671.3,2671.2,0.00902982]
[1724410720637,1.96054405,2671.3,2671.2,0.00902982]
[1724410720836,1.96054405,2671.3,2671.2,0.08358871]
[1724410722683,1.96054405,2671.3,2671.2,10.71198449]
[1724410722878,1.5689091,2671.3,2671.2,6.89348658]
[1724410724051,1.5689091,2671.3,2671.2,3.14985658]
[1724410724248,1.96054405,2671.3,2671.2,2.53278871]
[1724410725844,2.35265287,2671.5,2671.2,2.53278871]
[1724410726173,1.96190143,2671.3,2671.2,2.53278871]
[1724410729703,3.74342,2671.4,2671.2,2.53278871]
[1724410730000,3.74342,2671.4,2671.2,0.08358871]
[1724410730001,6.64614287,2671.3,2671.2,0.08358871]
[1724410730348,6.649047,2671.3,2671.2,0.08358871]
[1724410731943,6.44522008,2671.3,2671.2,0.08358871]
[1724410732252,7.8316436,2671.3,2671.2,0.08358871]
[1724410732475,11.5751336,2671.3,2671.2,0.08358871]
[1724410733386,9.1376336,2671.3,2671.2,0.08358871]
[1724410735152,11.88658191,2671.3,2671.2,0.08358871]
[1724410735980,9.1376336,2671.3,2671.2,0.08358871]
[1724410736364,11.88589023,2671.3,2671.2,0.08358871]
[1724410737754,9.1376336,2671.3,2671.2,0.08358871]
[1724410737956,11.88539442,2671.3,2671.2,0.08358871]
[1724410740011,11.88476165,2671.3,2671.2,0.08358871]
[1724410742207,11.88464399,2671.3,2671.2,0.08358871]
[1724410743200,11.88464399,2671.3,2671.2,0.00902982]
[1724410743498,9.1376336,2671.3,2671.2,0.08362671]
[1724410744067,9.1376336,2671.3,2671.2,0.00902982]
[1724410744275,11.88440193,2671.3,2671.2,0.00902982]
[1724410746972,9.1376336,2671.3,2671.2,0.00902982]
[1724410747190,11.88440193,2671.3,2671.2,0.00902982]
[1724410747387,9.1376336,2671.3,2671.2,0.00902982]
[1724410747781,9.1376336,2671.3,2671.2,0.08362671]
[1724410748515,9.1376336,2671.3,2671.2,0.00902982]
[1724410753189,6.64869061,2671.3,2671.2,2.40232982]
[1724410753391,4.29349,2671.3,2671.2,2.40232982]
[1724410754000,4.29349,2671.3,2671.2,0.00902982]
[1724410754414,8.03698,2671.3,2671.2,0.00902982]
[1724410754606,9.1376336,2671.3,2671.2,0.00902982]
[1724410757102,11.88361475,2671.3,2671.2,0.00902982]
[1724410757932,11.88516594,2671.3,2671.2,0.00902982]
[1724410758295,9.1376336,2671.3,2671.2,0.00902982]
[1724410758740,11.88516594,2671.3,2671.2,0.08157998]
[1724410758940,11.88516594,2671.3,2671.2,0.00902982]
[1724410759144,11.88516594,2671.3,2671.2,0.08157998]
[1724410759304,11.88516594,2671.3,2671.2,0.00902982]
[1724410759505,11.88516594,2671.3,2671.2,0.08157998]
[1724410760433,15.2398236,2671.3,2671.2,0.08157998]
[1724410760756,15.2398236,2671.3,2671.2,0.00902982]
[1724410761274,18.48534618,2671.3,2671.2,0.00902982]
[1724410762331,21.9833136,2671.3,2671.2,0.00902982]
[1724410764513,25.22681153,2671.3,2671.2,0.00902982]
[1724410766047,21.9833136,2671.3,2671.2,0.00902982]
[1724410768217,25.22501351,2671.3,2671.2,0.00902982]
[1724410771034,7.48838,2670.8,2670.7,2.12428896]
[1724410771248,10.39071487,2670.8,2670.7,2.19750139]
[1724410772251,10.39085157,2670.8,2670.7,2.19750139]
[1724410772558,8.03838,2670.8,2670.7,2.19750139]
[1724410773123,10.39104939,2670.8,2670.7,2.19750139]
[1724410773643,8.03838,2670.8,2670.7,2.19750139]
[1724410773846,10.39138967,2670.8,2670.7,2.19750139]
[1724410774635,8.03838,2670.8,2670.7,2.19750139]
[1724410775049,10.39185427,2670.8,2670.7,2.19750139]
[1724410775480,10.3922054,2670.8,2670.7,2.19750139]
[1724410775967,8.03838,2670.8,2670.7,2.19750139]
[1724410776376,10.39218789,2670.8,2670.7,2.19750139]
[1724410776875,10.3923969,2670.8,2670.7,2.19750139]
[1724410777171,8.03838,2670.8,2670.7,2.19750139]
[1724410780657,10.39234732,2670.8,2670.7,2.19750139]
[1724410781588,8.03838,2670.8,2670.7,2.19750139]
[1724410786964,15.52676,2670.8,2670.7,0.07321243]
[1724410787164,14.13237,2670.8,2670.7,0.07321243]
[1724410787350,11.78257,2670.8,2670.7,0.07321243]
[1724410787756,15.62854123,2670.8,2670.7,0.07321243]
[1724410787973,12.8832236,2670.8,2670.7,0.07321243]
[1724410788195,7.48866,2670.7,2670.6,2.25698372]
[1724410788495,8.03866,2670.7,2670.6,2.33054351]
[1724410790095,8.03866,2670.7,2670.6,0.00368372]
[1724410790258,10.78397083,2670.7,2670.6,0.07724351]
[1724410790458,8.03866,2670.7,2670.6,0.00368372]
[1724410790803,10.78397083,2670.7,2670.6,0.00368372]
[1724410792466,8.03866,2670.7,2670.6,0.00368372]
[1724410793313,8.03866,2670.7,2670.6,0.07737664]
[1724410796222,11.78299,2670.7,2670.6,0.07737664]
[1724410796534,11.78299,2670.7,2670.6,0.00368372]
[1724410796988,14.52760758,2670.7,2670.6,0.00368372]
[1724410797597,11.78299,2670.7,2670.6,0.00368372]
[1724410797799,14.52786828,2670.7,2670.6,0.00368372]
[1724410798122,14.52786835,2670.7,2670.6,0.00368372]
[1724410798494,14.52820202,2670.7,2670.6,0.00368372]
[1724410799900,11.78299,2670.7,2670.6,0.00368372]
[1724410800105,14.5285551,2670.7,2670.6,0.00368372]
[1724410800348,11.78299,2670.7,2670.6,0.00368372]
[1724410801471,14.52919278,2670.7,2670.6,0.00368372]
[1724410801649,11.78299,2670.7,2670.6,0.00368372]
[1724410802174,14.52921745,2670.7,2670.6,0.00368372]
[1724410803538,11.78299,2670.7,2670.6,0.00368372]
[1724410804681,7.48922,2670.5,2670.4,2.4541]
[1724410804860,8.03922,2670.5,2670.4,2.4541]
[1724410810471,10.78680591,2670.5,2670.4,2.4541]
[1724410810649,8.03922,2670.5,2670.4,2.4541]
[1724410811174,4.29461,2670.5,2670.4,2.4541]
[1724410811368,6.6497646,2670.5,2670.4,2.4541]
[1724410811571,3.74461,2670.5,2670.4,2.4541]
[1724410811772,3.74448,2670.6,2670.4,2.4541]
[1724410811987,6.98973586,2670.9,2670.4,3.074012]
[1724410811988,2.35527589,2670.5,2670.4,3.074012]
[1724410812194,2.35527589,2670.5,2670.4,2.951712]
[1724410812491,6.09976589,2670.6,2670.4,2.951712]
[1724410812659,6.09976589,2670.6,2670.4,2.3318]
[1724410812660,2.35527589,2670.5,2670.4,2.3318]
[1724410813064,3.74449,2670.6,2670.4,2.3318]
[1724410813875,3.74461,2670.5,2670.4,2.3318]
[1724410814188,8.03922,2670.5,2670.4,2.3318]
[1724410814887,3.74499,2670.3,2670.1,2.3785]
[1724410815076,6.1001202,2670.3,2670.1,2.3785]
[1724410815305,9.8451102,2670.3,2670.1,2.3785]
[1724410815468,6.1001202,2670.3,2670.1,2.3785]
[1724410815663,2.3551302,2670.3,2670.1,2.3785]
[1724410815861,2.3551302,2670.4,2670.1,2.9922583]
[1724410816066,2.3551302,2670.5,2670.2,2.4186]
[1724410816261,1.96272509,2670.3,2670.2,2.4186]
[1724410816483,2.3551302,2670.5,2670.2,2.4186]
[1724410816650,2.3551302,2670.5,2670.4,2.4809]
[1724410816851,2.3551302,2670.6,2670.4,2.4809]
[1724410817067,2.3551302,2670.7,2670.4,2.4809]
[1724410817287,2.3551302,2670.7,2670.4,2.55444607]
[1724410818473,1.96273336,2670.5,2670.4,2.55444607]
[1724410818672,2.3551302,2670.7,2670.5,2.4423]
[1724410818873,3.74405,2670.9,2670.5,2.4423]
[1724410819087,2.35531249,2670.7,2670.6,0.07335049]
[1724410819268,2.35531249,2670.8,2670.6,2.51565049]
[1724410819478,2.35531249,2670.8,2670.6,2.4423]
[1724410819803,6.09937249,2670.9,2670.7,2.5155646]
[1724410820098,2.35531249,2670.8,2670.7,2.5155646]
[1724410823063,3.74419,2670.8,2670.7,2.5155646]
[1724410823259,3.74419,2670.8,2670.7,0.0732646]
[1724410823500,13.98043457,2670.8,2670.7,0.0732646]
[1724410823764,3.74492,2670.3,2670.1,2.2922]
[1724410824002,3.74492,2670.3,2670.2,0.07139519]
[1724410825202,6.09792504,2670.4,2670.3,2.3117]
[1724410825367,6.64792504,2670.4,2670.3,2.38295697]
[1724410825569,0.55,2670.4,2670.3,2.38295697]
[1724410826404,6.09779504,2670.5,2670.3,2.38295697]
[1724410828497,2.35371845,2670.5,2670.3,2.38295697]
[1724410828693,2.35371845,2670.6,2670.3,2.38295697]
[1724410828904,1.9615101,2670.4,2670.3,2.38295697]
[1724410829107,2.35371845,2670.6,2670.3,2.38295697]
[1724410829468,6.09823845,2670.6,2670.3,2.38295697]
[1724410830492,1.96153886,2670.4,2670.3,2.38295697]
[1724410830673,1.96153886,2670.4,2670.3,3.14312103]
[1724410831779,9.84280845,2670.6,2670.3,3.14312103]
[1724410832016,9.84280845,2670.6,2670.3,2.42025697]
[1724410832221,6.09823845,2670.6,2670.3,2.42025697]
[1724410832513,1.96157951,2670.4,2670.3,2.42025697]
[1724410833078,3.74434,2670.7,2670.3,2.42025697]
[1724410833305,1.96163482,2670.4,2670.3,2.42025697]
[1724410833681,1.9579511,2670.4,2670.3,3.14684803]
[1724410833888,2.35396179,2670.7,2670.3,4.54273803]
[1724410834110,2.35396179,2670.7,2670.4,2.313]
[1724410834310,9.84244179,2670.8,2670.4,2.313]
[1724410834502,9.84244179,2670.8,2670.6,2.313]
[1724410834700,2.35396179,2670.7,2670.6,2.313]
[1724410835288,6.09822179,2670.8,2670.6,2.313]
[1724410835492,9.84254179,2670.8,2670.6,2.313]
[1724410835699,6.09822179,2670.8,2670.6,2.313]
[1724410837620,9.84252179,2670.8,2670.6,2.313]
[1724410837793,6.09822179,2670.8,2670.6,2.313]
[1724410837996,9.84200204,2670.8,2670.6,2.313]
[1724410838196,6.09773204,2670.8,2670.6,2.313]
[1724410838424,2.35347204,2670.8,2670.6,2.313]
[1724410838927,2.35347204,2670.9,2670.7,2.3136]
[1724410839722,1.56898649,2670.8,2670.7,4.8449436]
[1724410840238,1.56898649,2670.8,2670.7,3.74429]
[1724410840385,1.56898649,2670.8,2670.7,6.05429]
[1724410840586,1.56898649,2670.8,2670.7,7.20481816]
[1724410840841,1.56898649,2670.8,2670.7,3.46052816]
[1724410841702,1.56898649,2670.8,2670.7,2.31]
[1724410841895,1.56898649,2670.8,2670.7,2.38041423]
[1724410842584,3.74399,2671.0,2670.7,2.38041423]
[1724410842995,2.74575425,2671.4,2670.9,2.3572]
[1724410843195,2.74575425,2671.4,2671.3,2.3572]
[1724410843395,2.74575425,2671.4,2671.3,5.050794]
[1724410843607,2.74575425,2671.4,2671.3,5.2039268]
[1724410844012,2.74575425,2671.4,2671.3,8.9474168]
[1724410844924,2.74575425,2671.4,2671.3,13.7915604]
[1724410845221,3.2434222,2671.6,2671.5,3.74321]
[1724410845427,3.2434222,2671.6,2671.5,3.81288505]
[1724410846125,3.89860154,2671.9,2671.6,3.74305]
[1724410846629,3.89860154,2671.9,2671.7,0.06950339]
[1724410849097,3.89860154,2671.9,2671.5,3.7432]
[1724410849297,3.89860154,2671.9,2671.8,0.06941757]
[1724410849499,3.89860154,2671.9,2671.5,3.7432]
[1724410849695,3.89860154,2671.9,2671.8,0.06941757]
[1724410849894,3.89860154,2671.9,2671.5,3.7432]
[1724410850123,3.89860154,2671.9,2671.8,0.06941757]
[1724410850327,3.89860154,2671.9,2671.4,7.48661]
[1724410850521,3.89860154,2671.9,2671.8,0.06941757]
[1724410850722,7.64125154,2671.9,2671.4,3.74328]
[1724410851212,7.64125154,2671.9,2671.5,0.06967505]
[1724410851620,11.38399154,2671.9,2671.5,0.06967505]
[1724410851820,11.38399154,2671.9,2671.3,6.10066]
[1724410852136,11.38399154,2671.9,2671.0,3.0]
[1724410852137,1.1006536,2671.8,2671.4,0.06903391]
[1724410852333,1.1006536,2671.6,2671.4,0.06903391]
[1724410852497,0.55,2671.5,2670.9,5.3595]
[1724410852691,4.29321,2671.5,2671.0,4.654199]
[1724410852932,4.29321,2671.5,2671.0,8.398019]
[1724410853136,0.55,2671.5,2671.1,3.74374]
[1724410853436,4.2931,2671.6,2671.1,3.74374]
[1724410853995,0.55,2671.6,2671.1,7.48743]
[1724410854392,0.55,2671.6,2671.1,3.74369]
[1724410854601,0.55,2671.6,2671.2,3.74362]
[1724410854798,9.99723154,2671.9,2671.5,3.74319]
[1724410854802,3.89860154,2671.9,2671.5,3.74319]
[1724410855011,3.89860154,2671.9,2671.6,2.2603]
[1724410855414,3.89860154,2671.9,2671.6,6.00331]
[1724410856850,3.89860154,2671.9,2671.7,0.06683817]
[1724410857509,3.74254,2672.0,2671.7,0.06683817]
[1724410858047,3.74254,2672.0,2671.8,0.06675235]
[1724410858220,1.95563173,2672.1,2671.6,3.743]
[1724410858421,6.79852533,2672.2,2671.9,0.06666654]
[1724410858629,0.55,2672.1,2671.6,3.743]
[1724410858945,0.55,2672.1,2672.0,0.06658073]
[1724410859455,0.55,2672.1,2671.8,2.3382]
[1724410859664,0.55,2672.1,2672.0,0.06658073]
[1724410859810,0.55,2672.1,2671.9,0.06666654]
[1724410860143,0.55,2672.1,2671.8,2.3382]
[1724410860370,4.29239,2672.1,2672.0,0.06658073]
[1724410860851,4.29239,2672.1,2671.6,2.3382]
[1724410861046,4.29239,2672.1,2672.0,0.06658073]
[1724410861348,4.29239,2672.1,2671.6,2.3382]
[1724410861814,3.74254,2672.0,2671.7,0.06683817]
[1724410863452,4.29237,2672.1,2671.7,0.68165499]
[1724410863656,1.95452904,2672.3,2671.7,5.52510859]
[1724410863657,5.69666904,2672.3,2671.7,5.52510859]
[1724410863822,3.74224,2672.2,2671.8,2.4804]
[1724410864153,5.69663904,2672.3,2671.8,6.28993235]
[1724410864357,3.74211,2672.3,2671.8,2.54715235]
[1724410864938,3.74223,2672.2,2671.8,2.54715235]
[1724410865255,7.48454,2672.2,2671.9,0.06666178]
[1724410865753,3.74223,2672.2,2671.9,0.06666178]
[1724410866133,7.48454,2672.2,2671.9,0.06666178]
[1724410866318,3.74239,2672.1,2671.9,0.06666178]
[1724410866748,3.74251,2672.0,2671.4,2.3365]
[1724410867021,3.74251,2672.0,2671.4,3.13852905]
[1724410867365,3.74274,2671.9,2671.4,6.88185905]
[1724410869628,3.74274,2671.9,2671.4,10.62518905]
[1724410869836,3.74274,2671.9,2671.4,10.62512905]
[1724410870255,3.74274,2671.9,2671.4,6.88179905]
[1724410870459,3.74274,2671.9,2671.5,0.79824527]
[1724410871346,3.74274,2671.9,2671.4,6.88179905]
[1724410872166,3.74274,2671.9,2671.5,0.06698607]
[1724410873348,3.74251,2672.0,2671.5,0.06698607]
[1724410874230,7.48511,2672.0,2671.5,0.06698607]
[1724410874457,3.74251,2672.0,2671.5,3.81017607]
[1724410874655,3.74251,2672.0,2671.7,2.4397]
[1724410875175,3.74251,2672.0,2671.8,0.0667286]
[1724410875572,3.74251,2672.0,2671.7,2.4397]
[1724410875764,3.74251,2672.0,2671.9,0.06664278]
[1724410875959,7.4851,2672.0,2671.8,0.0667286]
[1724410876136,7.4851,2672.0,2671.9,0.06664278]
[1724410876337,3.74251,2672.0,2671.9,0.06664278]
[1724410876537,3.74251,2672.0,2671.7,2.4397]
[1724410876739,3.74251,2672.0,2671.9,0.06659528]
[1724410877241,3.74251,2672.0,2671.7,2.4397]
[1724410877479,3.74251,2672.0,2671.9,0.06659528]
[1724410877689,3.74251,2672.0,2671.7,2.4397]
[1724410877893,3.74251,2672.0,2671.9,0.06659528]
[1724410878171,3.74251,2672.0,2671.7,2.4397]
[1724410878363,3.74251,2672.0,2671.9,0.06659528]
[1724410878558,3.74251,2672.0,2671.8,0.0666811]
[1724410878760,3.74251,2672.0,2671.9,0.06659528]
[1724410879641,5.6967569,2672.0,2671.9,0.06659528]
[1724410879842,3.74267,2671.9,2671.7,2.4397]
[1724410880242,1.9542469,2672.0,2671.7,2.4397]
[1724410880442,5.6966669,2672.1,2671.7,2.79373536]
[1724410880662,5.69974994,2672.1,2671.7,2.79373536]
[1724410881387,1.95732994,2672.0,2671.7,2.79373536]
[1724410881847,1.95732994,2672.1,2671.7,2.79373536]
[1724410882053,1.95732994,2672.1,2671.7,6.53657536]
[1724410882278,6.09097593,2672.3,2671.8,1.1380199]
[1724410882279,1.95732994,2672.0,2671.8,1.1380199]
[1724410883795,1.95732994,2671.9,2671.8,1.1380199]
[1724410883990,1.95732994,2672.0,2671.8,1.1380199]
[1724410884217,6.09117593,2672.1,2671.8,1.1380199]
[1724410884421,6.09117593,2672.1,2671.7,2.4397]
[1724410884626,6.09151593,2671.9,2671.7,2.4397]
[1724410884921,6.09151593,2671.9,2671.5,2.3425]
[1724410885223,2.34879593,2671.7,2671.5,2.3425]
[1724410885520,2.35518014,2671.7,2671.5,2.3425]
[1724410885688,6.09807014,2671.8,2671.5,2.3425]
[1724410885887,2.35518014,2671.7,2671.5,2.3425]
[1724410886416,2.35518014,2671.8,2671.5,2.951084]
[1724410886928,2.35518014,2671.8,2671.6,0.06484324]
[1724410887723,6.09790014,2671.9,2671.6,0.06484324]
[1724410888036,2.35518014,2671.8,2671.6,0.06484324]
[1724410888234,2.35518014,2671.9,2671.6,0.06484324]
[1724410889328,2.35518014,2671.8,2671.6,0.06484324]
[1724410889632,2.35518014,2671.8,2671.6,1.22514532]
[1724410889858,2.35518014,2671.9,2671.6,1.22514532]
[1724410890338,2.35518014,2671.8,2671.6,1.22514532]
[1724410892752,2.35518014,2671.8,2671.6,0.06484324]